lending/lending_fUSD_20240417
["ID","MTS","AMOUNT","RATE_DAILY","PERIOD"]
[322802202,1713333032342,-900.0,0.000179,6]
[322802203,1713333032352,-274.52476501,0.000179,2]
[322802204,1713333032362,-627.91550438,0.000179,2]
[322802205,1713333032376,-1260.63443229,0.00017998,2]
[322802206,1713333032387,-8969.31359153,0.00017998,2]
[322802207,1713333032396,-155.0,0.00017998,2]
[322802208,1713333032406,-173.97005027,0.00017998,2]
[322802209,1713333032415,-3753.78062122,0.00017998,2]
[322802210,1713333032424,-16139.27705936,0.00017998,2]
[322802211,1713333032432,-155.02964282,0.00017998,2]
[322802212,1713333032441,-211.04811333,0.00017998,2]
[322802213,1713333032451,-2221.04346078,0.00017998,2]
[322802214,1713333032460,-705.82181173,0.00017998,2]
[322802215,1713333032469,-174.86503591,0.00017998,2]
[322802216,1713333032478,-398.68153434,0.00017998,2]
[322802217,1713333032487,-194.76466273,0.00017998,2]
[322802218,1713333032496,-202.14216056,0.00017998,2]
[322802219,1713333032506,-8026.87145208,0.00017998,2]
[322802220,1713333032514,-528.89290794,0.00017998,2]
[322802222,1713333032524,-10142.76844716,0.00017999,2]
[322802224,1713333032533,-100357.62974532,0.00018,2]
[322802226,1713333032545,-579.86979008,0.00018,2]
[322802228,1713333032556,-1149.86250347,0.00018,2]
[322802230,1713333032567,-1750.0,0.00018,2]
[322802232,1713333032579,-650.8,0.00018,2]
[322802235,1713333032601,-1136.40925582,0.00018,2]
[322802779,1713333038028,-1244.84,0.00018,2]
[322802789,1713333038083,-642.34,0.00018,2]
[322802791,1713333038095,-1235.47644,0.00018,2]
[322802820,1713333038352,-64183.38454778,0.00018,2]
[322802822,1713333038364,-33336.33072539,0.00018,2]
[322803025,1713333040303,-344.62235284,0.00018,2]
[322803077,1713333040774,-400.58463,0.00018,2]
[322803081,1713333040787,-6484.70076798,0.00018,2]
[322803227,1713333042145,-5019.67019031,0.00018,2]
[322803229,1713333042159,-379.43924281,0.00018,2]
[322803240,1713333042253,-449.514,0.00018,2]
[322803242,1713333042265,-1346.7855688,0.00018,2]
[322803371,1713333043456,-31102.94244843,0.00018,2]
[322803372,1713333043468,-500.49641719,0.00018,2]
[322803373,1713333043565,-628.18,0.00018,2]
[322803374,1713333043734,-339.64000026,0.00018,2]
[322803375,1713333043745,-307.29999984,0.00018,2]
[322803816,1713333048633,-641.3958,0.00018,2]
[322803868,1713333049065,-3834.23785744,0.00018,2]
[322803870,1713333049076,-3607.75075138,0.00018,2]
[322803872,1713333049087,-256.6,0.00018,2]
[322803874,1713333049098,-1111.50248093,0.00018,2]
[322803877,1713333049108,-627.44,0.00018,2]
[322803880,1713333049125,-918.75679,0.00018,2]
[322803882,1713333049138,-1662.25,0.00018,2]
[322803885,1713333049157,-1523.78274965,0.00018,2]
[322804442,1713333054894,183.16,0.00014422,2]
[322804892,1713333072449,4342.40731373,0.000154,2]
[322804893,1713333081784,754.94880987,9e-05,2]
[322804894,1713333116421,2860.08364477,6.94e-05,2]
[322804901,1713333149645,851.86996158,0.00015,2]
[322804903,1713333269099,2978.45722318,0.00015,2]
[322804904,1713333271401,709.06,0.00015728,2]
[322804910,1713333430764,820.36,0.0002,10]
[322804991,1713333768354,694.08,0.00014998,2]
[322804998,1713334202069,153.71,0.00024966,120]
[322805001,1713334232604,-617.05737564,0.00016495,2]
[322805003,1713334232613,-39.05161789,0.00016496,2]
[322805007,1713334232658,-160.94838211,0.00016496,2]
[322805008,1713334232667,-280.76034341,0.0001656,2]
[322805009,1713334232678,-364.0,0.0001656,2]
[322805010,1713334232688,-200.0,0.00016563,2]
[322805011,1713334232697,-150.0,0.00016565,2]
[322805012,1713334232707,-1277.04127448,0.00016605,2]
[322805013,1713334232723,-367.90872552,0.00016605,2]
[322805014,1713334232732,-150.0,0.00016618,2]
[322805015,1713334232741,-12474.96,0.00016622,2]
[322805016,1713334232751,-153.71,0.00016644,2]
[322805017,1713334232760,-1024.05,0.00016712,2]
[322805018,1713334232769,-258.38,0.00016747,2]
[322805019,1713334232779,-867.28,0.00016812,2]
[322805020,1713334232788,-340.89110708,0.00016872,2]
[322805021,1713334232877,-459.10889292,0.00016872,2]
[322805022,1713334232886,-153.45,0.00016912,2]
[322805023,1713334232895,-500.0,0.00016946,2]
[322805024,1713334232904,-155.065062,0.00016986,2]
[322805025,1713334232913,-153.45,0.00017205,2]
[322805026,1713334232922,-200.0,0.0001745,2]
[322805027,1713334232931,-153.45,0.00017499,2]
[322805028,1713334232941,-150.0,0.00017551,2]
[322805029,1713334232952,-150.0,0.00017784,2]
[322805030,1713334232962,-153.45,0.00017793,2]
[322805031,1713334232972,-155.065062,0.00017808,2]
[322805032,1713334232981,-661.51812723,0.000179,2]
[322805034,1713334232992,-565.12395396,0.000179,2]
[322805035,1713334233001,-260.17346807,0.000179,2]
[322805038,1713334233010,-313.97720773,0.000179,2]
[322805040,1713334233023,-544.34962023,0.000179,2]
[322805042,1713334233035,-503.4387616,0.000179,2]
[322805044,1713334233045,-315.13949121,0.00017998,2]
[322805047,1713334233054,-332.97170443,0.00017998,2]
[322805049,1713334233063,-263.51376194,0.00017999,2]
[322805068,1713334238342,-161.88063083,0.00016396,2]
[322805069,1713334238351,-71.71870024,0.00017999,2]
[322805070,1713334238361,-8653.94897185,0.00018,2]
[322805071,1713334238375,-638.25057478,0.00018,2]
[322805072,1713334238396,-27755.60252036,0.00018,2]
[322805073,1713334238409,-1036.24451051,0.00018,2]
[322805074,1713334238430,-19259.18755817,0.00018,2]
[322805075,1713334238441,-255421.97905834,0.00018,2]
[322805076,1713334238454,-1113.61949121,0.00018,2]
[322805077,1713334238482,-2025.65425398,0.00018,2]
[322805199,1713334240217,-407.07479513,0.00018,2]
[322805201,1713334240925,-1129.10829927,0.00018,2]
[322805203,1713334240937,-26714.72239562,0.00018,2]
[322805205,1713334240950,-795.89,0.00018,2]
[322805212,1713334243549,-152559.9708348,0.00018,2]
[322805215,1713334246352,-624.56983749,0.00018,2]
[322805216,1713334246364,-22442.394557,0.00018,2]
[322805217,1713334246405,-480.16982061,0.00018,2]
[322805218,1713334246416,-43994.7928434,0.00018,2]
[322805219,1713334246461,-729.84447546,0.00018,2]
[322805220,1713334246473,-13557.72976,0.00018,2]
[322805221,1713334246519,-7110.67508,0.00018,2]
[322805222,1713334246574,-7019.907,0.00018,2]
[322805223,1713334246587,-5007.09699,0.00018,2]
[322805224,1713334246600,-7307.79904,0.00018,2]
[322805225,1713334246630,-828.46681849,0.00018,2]
[322805226,1713334246641,-3150.39333094,0.00018,2]
[322805227,1713334246652,-547.84176427,0.00018,2]
[322805228,1713334249334,678.83,0.00015924,2]
[322805232,1713334597173,-617.05737564,0.00016993,2]
[322805233,1713334597196,-233.96695284,0.00016994,2]
[322805234,1713334597219,-6690.28,0.00016995,2]
[322805235,1713334597241,-268.28,0.00017052,2]
[322805236,1713334597260,-1382.85,0.00017077,2]
[322805237,1713334597281,-150.0,0.00017094,2]
[322805238,1713334597301,-657.56567152,0.00017095,2]
[322805239,1713334599327,-10000.0,0.00017095,2]
[322805240,1713334717781,682.79,0.00015119,2]
[322805241,1713334794653,-233.96695284,0.00016891,2]
[322805242,1713334794674,-155.0,0.00016892,2]
[322805243,1713334794696,-9611.03304716,0.00016893,2]
[322805244,1713334857389,-4900.0,0.00016893,2]
[322805245,1713335064360,-1610.93654065,0.00016756,2]
[322805246,1713335064385,-268.28,0.00016757,2]
[322805247,1713335064406,-921.56,0.00016788,2]
[322805248,1713335064429,-640.0,0.00016821,2]
[322805249,1713335064448,-2090.02345284,0.00016893,2]
[322805250,1713335064473,-250.0,0.00017047,2]
[322805251,1713335064496,-438.29,0.00017047,2]
[322805252,1713335064517,-300.0,0.00017086,2]
[322805253,1713335064538,-3480.91000651,0.00017087,2]
[322805254,1713335074464,-7808.0,0.00016695,2]
[322805255,1713335074484,-155.0,0.00016755,2]
[322805256,1713335074505,-641.11999349,0.00017087,2]
[322805257,1713335074526,-1300.07738684,0.00017098,2]
[322805258,1713335074545,-95.80261967,0.00017169,2]
[322805259,1713335076837,-404.19738033,0.00017169,2]
[322805260,1713335076863,-192.0,0.00017183,2]
[322805261,1713335076884,-682.79,0.00017383,2]
[322805262,1713335076908,-342.77,0.00017402,2]
[322805263,1713335076929,-342.77,0.0001745,2]
[322805264,1713335076951,-342.77,0.00017497,2]
[322805265,1713335076972,-342.77,0.00017545,2]
[322805266,1713335076993,-342.77,0.00017593,2]
[322805267,1713335077015,-360.0,0.00017599,2]
[322805268,1713335077037,-342.77,0.0001764,2]
[322805269,1713335077058,-342.77,0.00017688,2]
[322805270,1713335077080,-342.77,0.00017736,2]
[322805271,1713335077102,-342.77,0.00017784,2]
[322805272,1713335077122,-1090.67567,0.0001782,2]
[322805273,1713335077147,-342.77,0.00017831,2]
[322805274,1713335077169,-342.77,0.00017879,2]
[322805275,1713335077189,-508.61155851,0.000179,2]
[322805276,1713335077212,-227.6517845,0.000179,2]
[322805277,1713335077236,-342.77,0.00017927,2]
[322805278,1713335077259,-342.77,0.00017975,2]
[322805279,1713335077282,-157.99989736,0.0001799,2]
[322805280,1713335077304,-664.16462347,0.00017998,2]
[322805281,1713335077326,-155.0,0.00017998,2]
[322805282,1713335077348,-1100.89908583,0.00017999,2]
[322805283,1713335080872,-1676.4035389,0.00017999,2]
[322805284,1713335080896,-8323.5964611,0.00018,2]
[322805285,1713335083823,-10000.0,0.00018,2]
[322805286,1713335085897,-10000.0,0.00018,2]
[322805287,1713335087652,-10000.0,0.00018,2]
[322805288,1713335089367,-10000.0,0.00018,2]
[322805289,1713335090796,-1721.27,0.00017821,2]
[322805290,1713335090817,-8278.73,0.00018,2]
[322805291,1713335093150,-10000.0,0.00018,2]
[322805292,1713335094884,-10000.0,0.00018,2]
[322805293,1713335121651,-317.08409587,0.000179,2]
[322805294,1713335121675,-9682.91590413,0.00018,2]
[322805295,1713335124408,-10000.0,0.00018,2]
[322805296,1713335179796,-155.0,0.00017999,2]
[322805297,1713335179817,-9845.0,0.00018,2]
[322805298,1713335181830,-10000.0,0.00018,2]
[322805299,1713335183648,-10000.0,0.00018,2]
[322805300,1713335206879,632.04,0.00015776,2]
[322805301,1713335209699,-10000.0,0.00018,2]
[322805302,1713335219317,-1225.58903064,0.000179,2]
[322805303,1713335219338,-162.54969345,0.000179,2]
[322805304,1713335219359,-8611.86127591,0.00018,2]
[322805310,1713335431394,-203.79893697,0.00017567,2]
[322805311,1713335431405,-772.04995732,0.00017567,2]
[322805312,1713335431414,-488.0,0.00017568,2]
[322805313,1713335431423,-161.72415264,0.00017894,2]
[322805314,1713335431448,-483.74088576,0.00017894,2]
[322805315,1713335431457,-155.0,0.00017895,2]
[322805316,1713335431466,-199.19531149,0.000179,2]
[322805317,1713335431475,-457.75040265,0.000179,2]
[322805318,1713335431484,-936.0,0.00017996,2]
[322805319,1713335431493,-150.0,0.00017999,2]
[322805320,1713335431503,-150.0,0.00017999,2]
[322805321,1713335431512,-192704.77084297,0.00018,2]
[322805322,1713335431523,-3902.17262218,0.00018,2]
[322805323,1713335431614,-1743.09709085,0.00018,2]
[322805324,1713335431626,-274.46724758,0.00018,2]
[322805325,1713335431668,-6497.57914982,0.00018,2]
[322805332,1713335437438,-155.0,0.00017566,2]
[322805333,1713335437448,-6419.9532,0.00018,2]
[322805334,1713335437543,-639.23,0.00018,2]
[322805403,1713335439516,-671.10229479,0.00018,2]
[322805406,1713335440303,-269.75099589,0.00018,2]
[322805407,1713335440316,-500.0,0.00018,2]
[322805408,1713335440800,-465.13515,0.00018,2]
[322805417,1713335442549,-433.07202669,0.00018,2]
[322805418,1713335442658,-386.64605795,0.00018,2]
[322805419,1713335442669,-19337.46619345,0.00018,2]
[322805420,1713335442965,-526.88,0.00018,2]
[322805424,1713335443270,-1.52943107,0.00018,2]
[322805432,1713335461590,414.21985024,0.000283,120]
[322805433,1713335629230,155.96,0.00025914,120]
[322805434,1713335723052,633.74,0.00015265,2]
[322805435,1713336046993,84753.4369642,0.00027999,30]
[322805436,1713336124601,312.04,0.00028,30]
[322805437,1713336236625,602.05,0.00014697,2]
[322805438,1713336387408,151.041715,0.00028,30]
[322805439,1713336388706,151.041715,0.00028,30]
[322805440,1713336389262,151.041715,0.00028,30]
[322805441,1713336389855,151.041715,0.00028,30]
[322805442,1713336390612,151.041715,0.00028,30]
[322805443,1713336391282,151.041715,0.00028,30]
[322805444,1713336395678,157.041715,0.00028,30]
[322805445,1713336396388,157.041715,0.00028,30]
[322805446,1713336397024,157.041715,0.00028,30]
[322805447,1713336397662,157.041715,0.00028,30]
[322805448,1713336398312,157.041715,0.00028,30]
[322805449,1713336399055,157.041715,0.00028,30]
[322805450,1713336419698,163.041715,0.00028,30]
[322805451,1713336420444,163.041715,0.00028,30]
[322805452,1713336421062,163.041715,0.00028,30]
[322805453,1713336421767,163.041715,0.00028,30]
[322805454,1713336422427,163.041715,0.00028,30]
[322805455,1713336429523,167.041715,0.00028,30]
[322805456,1713336430721,167.041715,0.00028,30]
[322805457,1713336431473,167.041715,0.00028,30]
[322805465,1713336632237,-2562.6182,0.00016322,2]
[322805466,1713336632296,-1558.77100647,0.00016322,2]
[322805467,1713336632308,-698.40593279,0.00016322,2]
[322805481,1713336637652,-1710.02391879,0.00016322,2]
[322805482,1713336637662,-2117.16,0.00016325,2]
[322805483,1713336637671,-442.20973208,0.00016391,2]
[322805484,1713336637680,-155.0,0.00016422,2]
[322805485,1713336637691,-1322.2463,0.00016492,2]
[322805486,1713336637701,-390.4,0.00016554,2]
[322805487,1713336637710,-332.14832425,0.00016593,2]
[322805488,1713336637726,-76.71167575,0.00016593,2]
[322805489,1713336637735,-1852.42,0.00016615,2]
[322805490,1713336637744,-410.66,0.0001663,2]
[322805491,1713336637753,-150.99,0.00016712,2]
[322805492,1713336637762,-150.99,0.00016712,2]
[322805493,1713336637772,-432.12,0.00016712,2]
[322805494,1713336637781,-151.34,0.00016774,2]
[322805495,1713336637790,-151.34,0.00016829,2]
[322805496,1713336637800,-177.39,0.0001684,2]
[322805497,1713336637809,-151.34,0.00016883,2]
[322805498,1713336637818,-151.34,0.00016938,2]
[322805499,1713336637826,-239.92349311,0.00016961,2]
[322805500,1713336637838,-362.12650689,0.00016961,2]
[322805501,1713336637846,-151.34,0.00016993,2]
[322805502,1713336637855,-5.70386718,0.00016999,2]
[322805503,1713336637866,-144.29613282,0.00016999,2]
[322805504,1713336637875,-150.0,0.00016999,2]
[322805505,1713336637884,-923.83803414,0.00017,2]
[322805506,1713336637893,-131.77294333,0.00017,2]
[322805509,1713336639682,-979.49705667,0.00017,2]
[322805510,1713336639695,-609.6,0.00017015,2]
[322805511,1713336639705,-151.34,0.00017047,2]
[322805512,1713336639714,-151.34,0.00017102,2]
[322805513,1713336639723,-151.34,0.00017157,2]
[322805514,1713336639732,-151.34,0.00017211,2]
[322805515,1713336639741,-151.34,0.00017266,2]
[322805516,1713336639750,-155.96,0.00017276,2]
[322805517,1713336639759,-151.34,0.0001732,2]
[322805518,1713336639769,-151.34,0.00017375,2]
[322805519,1713336639994,-151.34,0.0001743,2]
[322805520,1713336640005,-168.79,0.00017469,2]
[322805521,1713336640015,-151.34,0.00017484,2]
[322805522,1713336640026,-151.34,0.00017539,2]
[322805523,1713336640037,-151.34,0.00017594,2]
[322805524,1713336640047,-151.34,0.00017648,2]
[322805525,1713336640056,-1325.56306,0.0001782,2]
[322805526,1713336640066,-429.09221136,0.000179,2]
[322805527,1713336640075,-502.11877199,0.000179,2]
[322805528,1713336640084,-210.89605577,0.00017998,2]
[322805529,1713336640093,-155.43235341,0.00017998,2]
[322805530,1713336640102,-780.34286168,0.00017998,2]
[322805531,1713336640112,-1828.75910798,0.00017998,2]
[322805532,1713336640124,-155.14597916,0.00017999,2]
[322805533,1713336640133,-526.7172,0.00017999,2]
[322805534,1713336640142,-5896.14310294,0.00018,2]
[322805538,1713336640282,-654.6485798,0.00018,2]
[322805539,1713336640295,-801.43629932,0.00018,2]
[322805540,1713336640307,-5258.27001599,0.00018,2]
[322805541,1713336640319,-1442.06999907,0.00018,2]
[322805562,1713336642857,-45315.53,0.00018,2]
[322805563,1713336642915,-1330.03109,0.00018,2]
[322805564,1713336643119,-1634.876216,0.00018,2]
[322805565,1713336643189,-305.552031,0.00018,2]
[322805568,1713336645893,-485.39061137,0.00018,2]
[322805570,1713336853797,167.041715,0.00028,30]
[322805571,1713336860671,173.041715,0.00028,30]
[322805572,1713336862842,173.041715,0.00028,30]
[322805573,1713336864229,173.041715,0.00028,30]
[322805574,1713336865338,173.041715,0.00028,30]
[322805575,1713336878434,197.041715,0.00028,30]
[322805576,1713336879327,197.041715,0.00028,30]
[322805577,1713336880862,197.041715,0.00028,30]
[322805578,1713336880963,197.041715,0.00028,30]
[322805579,1713336905712,151.041715,0.00028,30]
[322805580,1713336906810,151.041715,0.00028,30]
[322805581,1713336908023,151.041715,0.00028,30]
[322805582,1713336913199,151.041715,0.00028,30]
[322805583,1713336929063,175.041715,0.00028,30]
[322805585,1713337223259,586.17,0.00015336,2]
[322805586,1713337293135,155.0,0.00015999,2]
[322805587,1713337633367,155.96,0.00026042,120]
[322805588,1713337742939,570.48,0.00015421,2]
[322805604,1713337831833,-161.40424531,0.00016098,2]
[322805606,1713337831843,-307.1004882,0.00016198,2]
[322805608,1713337831852,-155.0,0.00016198,2]
[322805609,1713337831861,-194.50903792,0.00016198,2]
[322805610,1713337831870,-461.52470247,0.00016198,2]
[322805611,1713337831880,-312.32,0.00017201,2]
[322805612,1713337831889,-1410.76,0.00017273,2]
[322805613,1713337831898,-148.16815994,0.0001729,2]
[322805614,1713337831909,-543.83184006,0.0001729,2]
[322805615,1713337831919,-150.0,0.00017336,2]
[322805616,1713337831930,-343.87,0.00017337,2]
[322805617,1713337831940,-155.96,0.00017361,2]
[322805618,1713337831950,-687.68,0.00017413,2]
[322805619,1713337831961,-150.99,0.00017599,2]
[322805620,1713337831971,-570.48,0.00017684,2]
[322805621,1713337831981,-47.74444742,0.00017856,2]
[322805622,1713337831992,-952.25555258,0.00017856,2]
[322805623,1713337832001,-500.0,0.00017856,2]
[322805624,1713337832010,-200.0,0.00017856,2]
[322805625,1713337832020,-381.31444742,0.000179,2]
[322805626,1713337832180,-6530.46108938,0.000179,2]
[322805627,1713337832192,-4117.55667087,0.000179,2]
[322805628,1713337832204,-441.23700119,0.000179,2]
[322805629,1713337832237,-3198.8,0.000179,2]
[322805630,1713337832248,-306.88917699,0.000179,2]
[322805639,1713337835494,166.31745263,0.00028,30]
[322805645,1713337838060,-1920.30108968,0.000179,2]
[322805646,1713337838126,-2447.50962447,0.000179,2]
[322805647,1713337838137,-2649.03037554,0.000179,2]
[322805656,1713337839969,-248.48802446,0.000179,2]
[322805657,1713337839979,-2203.435,0.000179,2]
[322805658,1713337839988,-16715.2518,0.000179,2]
[322805659,1713337839997,-398.3834,0.000179,2]
[322805660,1713337840006,-1000.0,0.000179,2]
[322805661,1713337840016,-500.0,0.000179,2]
[322805662,1713337840025,-161.4042453,0.000179,2]
[322805663,1713337840039,-386.18299017,0.000179,2]
[322805664,1713337840049,-1266.89274443,0.000179,2]
[322805665,1713337840061,-1735.614723,0.00017992,2]
[322805666,1713337840070,-424.5191321,0.00017998,2]
[322805667,1713337840079,-2138.52211679,0.00017998,2]
[322805668,1713337840088,-155.32092915,0.00017998,2]
[322805669,1713337840098,-239.83476423,0.00017998,2]
[322805670,1713337840107,-245.25427847,0.00017999,2]
[322805671,1713337840117,-31982.97654218,0.00017999,2]
[322805672,1713337840126,-6846.9442301,0.00018,2]
[322805673,1713337840300,-660.03416019,0.00018,2]
[322805674,1713337840312,-424.5191321,0.00018,2]
[322805675,1713337840323,-876.34749943,0.00018,2]
[322805697,1713337842949,-3124.39764617,0.00018,2]
[322805698,1713337842961,-25906.12890789,0.00018,2]
[322805699,1713337843007,-7251.70380655,0.00018,2]
[322805700,1713337843018,-270.94011476,0.00018,2]
[322805701,1713337843518,-721.26296917,0.00018,2]
[322805738,1713337846032,-2982.02215258,0.00017999,2]
[322805740,1713337846042,-384030.28496873,0.00018,2]
[322805742,1713337846052,-45827.15,0.00018,2]
[322805744,1713337846061,-8085.24032466,0.00018,2]
[322805746,1713337846073,-5113.14605862,0.00018,2]
[322805748,1713337846082,-205.72513863,0.00018,2]
[322805750,1713337846092,-1371.38066,0.00018,2]
[322805752,1713337846103,-6268.2491287,0.00018004,2]
[322805754,1713337846112,-4183.921834,0.00018016,2]
[322805756,1713337846125,-386.18299017,0.00018122,2]
[322805759,1713337846140,-1266.89274443,0.00018122,2]
[322805760,1713337846149,-167.21,0.00018142,2]
[322805763,1713337846159,-2686.55046441,0.00018219,2]
[322805765,1713337846168,-386.18299017,0.00018344,2]
[322805767,1713337846177,-1240.67620437,0.00018356,2]
[322805769,1713337846187,-386.18299017,0.00018567,2]
[322805771,1713337846196,-506.0,0.000186,2]
[322805772,1713337846206,-805.0,0.000186,2]
[322805773,1713337846215,-386.18299017,0.00018789,2]
[322805774,1713337846230,-517.0,0.00018822,2]
[322805775,1713337846240,-157.99989736,0.0001889,2]
[322805776,1713337846249,-7573.42685797,0.000189,2]
[322805777,1713337846259,-83159.86787918,0.000189,3]
[322805778,1713337846279,-3409.84107,0.000189,3]
[322805779,1713337846302,-424.93669853,0.000189,3]
[322805780,1713337846314,-2800.476,0.000189,3]
[322805781,1713337846334,-747.95701305,0.000189,3]
[322805782,1713337846345,-318.2542,0.000189,3]
[322805783,1713337846383,-380.82665146,0.00018344,2]
[322807695,1713338130260,-502.6468887,0.00031861,30]
[322807696,1713338130284,-500.0,0.00031861,30]
[322807697,1713338130308,-500.0,0.00031861,30]
[322807698,1713338130332,-500.0,0.00031861,30]
[322807699,1713338130357,-500.0,0.00031861,30]
[322807700,1713338130380,-489.77105034,0.00031861,30]
[322807701,1713338130406,-491.1373,0.00031861,30]
[322807702,1713338130430,-414.0,0.00031861,30]
[322807703,1713338130453,-1224.50705768,0.00031861,30]
[322807704,1713338130477,-228.5629044,0.00031861,30]
[322807705,1713338130501,-159.04715933,0.00031861,120]
[322807706,1713338130524,-4408.36926625,0.00031861,120]
[322807707,1713338130548,-338.04893211,0.00031861,120]
[322807708,1713338130573,-1000.0,0.00031861,120]
[322807709,1713338130599,-502.54418785,0.00031861,30]
[322807710,1713338130623,-382.26443989,0.00031861,30]
[322807711,1713338130649,-426.30520559,0.00031861,30]
[322807712,1713338130673,-310.61572662,0.00031861,30]
[322807713,1713338130696,-500.0,0.00031861,30]
[322807714,1713338130720,-500.0,0.00031861,30]
[322807715,1713338130743,-500.0,0.00031861,30]
[322807716,1713338130767,-500.0,0.00031861,30]
[322807717,1713338130791,-500.0,0.00031861,30]
[322807718,1713338130814,-500.0,0.00031861,30]
[322807719,1713338130838,-500.0,0.00031861,30]
[322807720,1713338130862,-500.0,0.00031861,30]
[322807721,1713338130887,-483.0585903,0.00031861,30]
[322807722,1713338130914,-502.17501373,0.00031861,30]
[322807723,1713338130940,-500.0,0.00031861,30]
[322807724,1713338130964,-502.11863701,0.00031861,30]
[322807725,1713338130988,-500.0,0.00031861,30]
[322807726,1713338131011,-510.16146537,0.00031861,30]
[322807727,1713338131035,-500.0,0.00031861,30]
[322807728,1713338131059,-500.0,0.00031861,30]
[322807729,1713338131083,-502.14426926,0.00031861,30]
[322807730,1713338131107,-526.89511774,0.00031861,30]
[322807731,1713338131131,-500.0,0.00031861,30]
[322807732,1713338131159,-525.04092212,0.00031861,30]
[322807733,1713338131182,-513.40857341,0.00031861,30]
[322807734,1713338131208,-514.14000948,0.00031861,30]
[322807735,1713338131231,-530.963501,0.00031861,30]
[322807736,1713338131254,-168.64706343,0.00031861,30]
[322807737,1713338131277,-516.33374431,0.00031861,30]
[322807738,1713338131302,-487.46103584,0.00031861,30]
[322807739,1713338131326,-500.0,0.00031861,30]
[322807740,1713338131348,-500.0,0.00031861,30]
[322807741,1713338131372,-501.00854367,0.00031861,30]
[322807742,1713338131396,-518.30737553,0.00031861,30]
[322807743,1713338131423,-504.26063322,0.00031861,30]
[322807744,1713338131446,-500.0,0.00031861,30]
[322807745,1713338131470,-513.30934798,0.00031861,30]
[322807746,1713338131493,-378.18993561,0.00031861,30]
[322807747,1713338131516,-499.11145666,0.00031861,30]
[322807748,1713338131540,-500.0,0.00031861,30]
[322807749,1713338131564,-240.95051377,0.00031861,30]
[322807750,1713338131588,-507.16627427,0.00031861,30]
[322807751,1713338131612,-508.96670396,0.00031861,30]
[322807752,1713338131636,-504.11019315,0.00031861,30]
[322807753,1713338131664,-519.30607183,0.00031861,30]
[322807754,1713338131689,-500.0,0.00031861,30]
[322807755,1713338131712,-514.51986447,0.00031861,30]
[322807756,1713338131736,-1721.44,0.00031861,30]
[322807757,1713338131761,-1721.44,0.00031861,30]
[322807758,1713338131785,-1721.44,0.00031861,30]
[322807759,1713338131809,-1721.44,0.00031861,30]
[322807760,1713338131833,-1721.44,0.00031861,30]
[322807761,1713338131860,-1721.44,0.00031861,30]
[322807762,1713338131885,-1721.44,0.00031861,30]
[322807763,1713338131913,-1721.44,0.00031861,30]
[322807764,1713338131937,-1721.44,0.00031861,30]
[322807765,1713338131961,-1721.44,0.00031861,30]
[322807766,1713338131986,-1721.44,0.00031861,30]
[322807767,1713338132010,-1721.44,0.00031861,30]
[322807768,1713338132033,-1721.44,0.00031861,30]
[322807769,1713338132057,-1721.44,0.00031861,30]
[322807770,1713338132081,-1721.44,0.00031861,30]
[322807771,1713338132105,-1721.44,0.00031861,30]
[322807772,1713338132129,-1721.44,0.00031861,30]
[322807773,1713338132155,-1721.44,0.00031861,30]
[322807774,1713338132179,-1721.44,0.00031861,30]
[322807775,1713338132202,-1721.44,0.00031861,30]